[Event "Titled Tuesday Blitz July 11 Late 2023"]
[White "Olivares Olivares, Claudio"]
[Black "Djordjevic, Dejan N"]
[WhiteFideId "3400786"]
[BlackFideId "913316"]
[WhiteElo "2515"]
[BlackElo "2088"]
[Result "1-0"]
[Round "3"]
[TimeControl "180+2"]
[Date "2023.07.11"]
[WhiteClock "0:01:10"]
[BlackClock "0:00:18"]
[Board "135"]

1. e4 {[%clk 0:03:00]}  c5 {[%clk 0:02:59]} 2. Nf3 {[%clk 0:03:00]}  Nc6 {[%clk 0:02:59]} 3. d4 {[%clk 0:03:00]}  cxd4 {[%clk 0:02:59]} 4. Nxd4 {[%clk 0:03:01]}  Nf6 {[%clk 0:02:59]} 5. Nxc6 {[%clk 0:03:01]}  bxc6 {[%clk 0:02:59]} 6. Bd3 {[%clk 0:03:02]}  e5 {[%clk 0:02:58]} 7. O-O {[%clk 0:03:03]}  Qb6 {[%clk 0:02:57]} 8. Nc3 {[%clk 0:03:00]}  Be7 {[%clk 0:02:57]} 9. Be3 {[%clk 0:02:58]}  Qxb2 {[%clk 0:02:55]} 10. Qd2 {[%clk 0:02:58]}  Qa3 {[%clk 0:02:54]} 11. Rab1 {[%clk 0:02:58]}  Qa5 {[%clk 0:02:50]} 12. Rb3 {[%clk 0:02:55]}  Qc7 {[%clk 0:02:44]} 13. Rfb1 {[%clk 0:02:52]}  O-O {[%clk 0:02:42]} 14. h3 {[%clk 0:02:49]}  d6 {[%clk 0:02:37]} 15. f4 {[%clk 0:02:46]}  Nd7 {[%clk 0:02:34]} 16. f5 {[%clk 0:02:45]}  Rb8 {[%clk 0:02:21]} 17. Rxb8 {[%clk 0:02:37]}  Nxb8 {[%clk 0:02:21]} 18. g4 {[%clk 0:02:33]}  Nd7 {[%clk 0:02:19]} 19. g5 {[%clk 0:02:32]}  Re8 {[%clk 0:01:57]} 20. Bc4 {[%clk 0:02:29]}  Nb6 {[%clk 0:01:56]} 21. Bb3 {[%clk 0:02:29]}  Ba6 {[%clk 0:01:43]} 22. g6 {[%clk 0:02:28]}  Nc4 {[%clk 0:01:43]} 23. gxf7+ {[%clk 0:02:27]}  Kxf7 {[%clk 0:01:42]} 24. Qe2 {[%clk 0:02:24]}  d5 {[%clk 0:01:27]} 25. exd5 {[%clk 0:02:05]}  cxd5 {[%clk 0:01:27]} 26. Nxd5 {[%clk 0:02:02]}  Qc8 {[%clk 0:01:20]} 27. Qh5+ {[%clk 0:01:54]}  Kg8 {[%clk 0:01:17]} 28. f6 {[%clk 0:01:50]}  Bxf6 {[%clk 0:01:06]} 29. Kh2 {[%clk 0:01:47]}  Re6 {[%clk 0:00:33]} 30. Rg1 {[%clk 0:01:34]}  Kh8 {[%clk 0:00:28]} 31. Qf7 {[%clk 0:01:30]}  Qe8 {[%clk 0:00:19]} 32. Qxa7 {[%clk 0:01:30]}  Nxe3 {[%clk 0:00:18]} 33. Nxf6 {[%clk 0:01:12]}  Rxf6 {[%clk 0:00:18]} 34. Qxg7# {[%clk 0:01:10]} 1-0


[Site "https://www.chess.com"]

[Event "Titled Tuesday Blitz July 11 Late 2023"]
[White "Upper, John"]
[Black "Manelyuk, Daniil"]
[WhiteFideId "2606437"]
[BlackFideId "44173920"]
[WhiteElo "1995"]
[BlackElo "2639"]
[Result "0-1"]
[Round "3"]
[TimeControl "180+2"]
[Date "2023.07.11"]
[WhiteClock "0:00:03"]
[BlackClock "0:00:49"]
[Board "138"]

1. c4 {[%clk 0:03:00]}  Nf6 {[%clk 0:01:47]} 2. Nc3 {[%clk 0:02:58]}  g6 {[%clk 0:01:47]} 3. e4 {[%clk 0:02:58]}  d6 {[%clk 0:01:46]} 4. g3 {[%clk 0:02:55]}  Bg7 {[%clk 0:01:47]} 5. Bg2 {[%clk 0:02:55]}  O-O {[%clk 0:01:48]} 6. Nge2 {[%clk 0:02:48]}  e5 {[%clk 0:01:48]} 7. O-O {[%clk 0:02:45]}  c5 {[%clk 0:01:47]} 8. d3 {[%clk 0:02:44]}  Nc6 {[%clk 0:01:47]} 9. a3 {[%clk 0:02:43]}  a5 {[%clk 0:01:47]} 10. Rb1 {[%clk 0:02:41]}  Bg4 {[%clk 0:01:44]} 11. f3 {[%clk 0:02:32]}  Bd7 {[%clk 0:01:40]} 12. Nd5 {[%clk 0:02:31]}  Nxd5 {[%clk 0:01:40]} 13. cxd5 {[%clk 0:02:29]}  Nd4 {[%clk 0:01:40]} 14. b4 {[%clk 0:02:21]}  axb4 {[%clk 0:01:34]} 15. axb4 {[%clk 0:02:21]}  Ba4 {[%clk 0:01:29]} 16. Qd2 {[%clk 0:01:59]}  Nb3 {[%clk 0:01:28]} 17. Qb2 {[%clk 0:01:54]}  cxb4 {[%clk 0:01:24]} 18. Be3 {[%clk 0:01:47]}  Qa5 {[%clk 0:01:22]} 19. Bh3 {[%clk 0:01:12]}  f5 {[%clk 0:01:18]} 20. Nc1 {[%clk 0:00:42]}  Nxc1 {[%clk 0:01:04]} 21. Bxc1 {[%clk 0:00:36]}  b3 {[%clk 0:01:02]} 22. Be3 {[%clk 0:00:31]}  Rfc8 {[%clk 0:00:58]} 23. Rf2 {[%clk 0:00:30]}  Rc2 {[%clk 0:00:57]} 24. Qa3 {[%clk 0:00:24]}  f4 {[%clk 0:00:53]} 25. gxf4 {[%clk 0:00:17]}  exf4 {[%clk 0:00:53]} 26. Qxd6 {[%clk 0:00:17]}  fxe3 {[%clk 0:00:51]} 27. Be6+ {[%clk 0:00:16]}  Kh8 {[%clk 0:00:51]} 28. Rxc2 {[%clk 0:00:14]}  bxc2 {[%clk 0:00:51]} 29. Rxb7 {[%clk 0:00:13]}  c1=Q+ {[%clk 0:00:50]} 30. Kg2 {[%clk 0:00:13]}  Qad2+ {[%clk 0:00:49]} 31. Kh3 {[%clk 0:00:11]}  Qf1+ {[%clk 0:00:50]} 32. Kh4 {[%clk 0:00:03]}  Bf6+ {[%clk 0:00:49]} 0-1


[Site "https://www.chess.com"]

[Event "Titled Tuesday Blitz July 11 Late 2023"]
[White "i_like_explosions"]
[Black "Ehlvest, Jaan"]
[BlackFideId "4500016"]
[WhiteElo "2416"]
[BlackElo "2607"]
[Result "0-1"]
[Round "3"]
[TimeControl "180+2"]
[Date "2023.07.11"]
[WhiteClock "0:00:19"]
[BlackClock "0:00:38"]
[Board "139"]

1. d4 {[%clk 0:03:00]}  Nf6 {[%clk 0:02:56]} 2. Bg5 {[%clk 0:03:01]}  d5 {[%clk 0:02:55]} 3. Bxf6 {[%clk 0:03:01]}  gxf6 {[%clk 0:02:53]} 4. e3 {[%clk 0:03:01]}  c5 {[%clk 0:02:52]} 5. dxc5 {[%clk 0:03:01]}  e5 {[%clk 0:02:51]} 6. c4 {[%clk 0:03:00]}  Qa5+ {[%clk 0:02:33]} 7. Nc3 {[%clk 0:02:58]}  dxc4 {[%clk 0:02:25]} 8. Bxc4 {[%clk 0:02:57]}  Nc6 {[%clk 0:02:17]} 9. Qb3 {[%clk 0:02:49]}  Nd8 {[%clk 0:02:08]} 10. Nf3 {[%clk 0:02:29]}  Bxc5 {[%clk 0:02:07]} 11. O-O {[%clk 0:02:24]}  O-O {[%clk 0:02:05]} 12. Nd5 {[%clk 0:02:14]}  Kg7 {[%clk 0:02:04]} 13. Qd3 {[%clk 0:02:02]}  Nc6 {[%clk 0:01:57]} 14. a3 {[%clk 0:02:01]}  Qd8 {[%clk 0:01:46]} 15. Nh4 {[%clk 0:01:50]}  Be6 {[%clk 0:01:36]} 16. Nf5+ {[%clk 0:01:50]}  Kh8 {[%clk 0:01:36]} 17. Qe4 {[%clk 0:01:46]}  Rg8 {[%clk 0:01:25]} 18. Rad1 {[%clk 0:01:30]}  Rg5 {[%clk 0:01:17]} 19. Ng3 {[%clk 0:01:15]}  f5 {[%clk 0:01:15]} 20. Qh4 {[%clk 0:01:14]}  Rg4 {[%clk 0:01:12]} 21. Qh5 {[%clk 0:01:04]}  Rxc4 {[%clk 0:01:08]} 22. Nxf5 {[%clk 0:00:50]}  Bxd5 {[%clk 0:00:59]} 23. Rxd5 {[%clk 0:00:35]}  Qf6 {[%clk 0:00:57]} 24. b3 {[%clk 0:00:26]}  Rc2 {[%clk 0:00:55]} 25. b4 {[%clk 0:00:26]}  Bf8 {[%clk 0:00:54]} 26. Rfd1 {[%clk 0:00:25]}  Rd8 {[%clk 0:00:50]} 27. Rxd8 {[%clk 0:00:22]}  Nxd8 {[%clk 0:00:50]} 28. h3 {[%clk 0:00:22]}  Ne6 {[%clk 0:00:41]} 29. Rd7 {[%clk 0:00:22]}  Ng7 {[%clk 0:00:39]} 30. Nxg7 {[%clk 0:00:19]}  Qxf2+ {[%clk 0:00:38]} 0-1


[Site "https://www.chess.com"]

[Event "Titled Tuesday Blitz July 11 Late 2023"]
[White "ATM622"]
[Black "Prydun, Andriy"]
[BlackFideId "14145898"]
[WhiteElo "2552"]
[BlackElo "2375"]
[Result "0-1"]
[Round "3"]
[TimeControl "180+2"]
[Date "2023.07.11"]
[WhiteClock "0:00:23"]
[BlackClock "0:00:20"]
[Board "142"]

1. d4 {[%clk 0:03:00]}  d5 {[%clk 0:02:56]} 2. c4 {[%clk 0:02:59]}  c6 {[%clk 0:02:56]} 3. Nf3 {[%clk 0:02:58]}  f6 {[%clk 0:02:55]} 4. Nbd2 {[%clk 0:02:57]}  Be6 {[%clk 0:02:54]} 5. Qc2 {[%clk 0:02:54]}  Bf7 {[%clk 0:02:53]} 6. g3 {[%clk 0:02:53]}  e6 {[%clk 0:02:51]} 7. Bg2 {[%clk 0:02:53]}  Bb4 {[%clk 0:02:50]} 8. O-O {[%clk 0:02:53]}  Ne7 {[%clk 0:02:50]} 9. e4 {[%clk 0:02:52]}  O-O {[%clk 0:02:45]} 10. a3 {[%clk 0:02:52]}  Ba5 {[%clk 0:02:45]} 11. b4 {[%clk 0:02:52]}  Bc7 {[%clk 0:02:46]} 12. Bb2 {[%clk 0:02:51]}  Nd7 {[%clk 0:02:46]} 13. Rac1 {[%clk 0:02:51]}  Rc8 {[%clk 0:02:44]} 14. Rfd1 {[%clk 0:02:50]}  a5 {[%clk 0:02:32]} 15. c5 {[%clk 0:02:48]}  b5 {[%clk 0:02:23]} 16. h4 {[%clk 0:02:44]}  axb4 {[%clk 0:02:04]} 17. axb4 {[%clk 0:02:45]}  dxe4 {[%clk 0:02:02]} 18. Nxe4 {[%clk 0:02:43]}  Nd5 {[%clk 0:02:03]} 19. Qd2 {[%clk 0:02:40]}  Ra8 {[%clk 0:01:52]} 20. Ra1 {[%clk 0:02:37]}  Qb8 {[%clk 0:01:34]} 21. Rxa8 {[%clk 0:02:24]}  Qxa8 {[%clk 0:01:24]} 22. Ra1 {[%clk 0:02:15]}  Qb7 {[%clk 0:01:15]} 23. Bh3 {[%clk 0:02:09]}  Ra8 {[%clk 0:01:11]} 24. Ne1 {[%clk 0:02:00]}  Rxa1 {[%clk 0:00:55]} 25. Bxa1 {[%clk 0:02:00]}  Qa6 {[%clk 0:00:56]} 26. Nc2 {[%clk 0:01:59]}  Qa2 {[%clk 0:00:55]} 27. h5 {[%clk 0:01:49]}  h6 {[%clk 0:00:47]} 28. Qd3 {[%clk 0:01:27]}  Qb1+ {[%clk 0:00:44]} 29. Kg2 {[%clk 0:01:24]}  f5 {[%clk 0:00:35]} 30. Nd2 {[%clk 0:01:09]}  Qd1 {[%clk 0:00:31]} 31. Bb2 {[%clk 0:00:36]}  Bxh5 {[%clk 0:00:25]} 32. Ne3 {[%clk 0:00:37]}  Bf3+ {[%clk 0:00:21]} 33. Nxf3 {[%clk 0:00:23]}  Qxd3 {[%clk 0:00:20]} 0-1


[Site "https://www.chess.com"]

[Event "Titled Tuesday Blitz July 11 Late 2023"]
[White "Dragomirescu, Robin-Alexandru"]
[Black "Bogaudinov, Rushan"]
[WhiteFideId "1213849"]
[BlackFideId "4129288"]
[WhiteElo "2506"]
[BlackElo "2362"]
[Result "1-0"]
[Round "3"]
[TimeControl "180+2"]
[Date "2023.07.11"]
[WhiteClock "0:00:56"]
[BlackClock "0:00:10"]
[Board "144"]

1. b3 {[%clk 0:03:00]}  a5 {[%clk 0:02:59]} 2. Bb2 {[%clk 0:02:59]}  a4 {[%clk 0:02:59]} 3. e4 {[%clk 0:03:00]}  e6 {[%clk 0:02:59]} 4. Nf3 {[%clk 0:02:59]}  a3 {[%clk 0:02:58]} 5. Bc3 {[%clk 0:02:58]}  Nf6 {[%clk 0:02:57]} 6. Qe2 {[%clk 0:02:45]}  b6 {[%clk 0:02:51]} 7. d4 {[%clk 0:02:39]}  Ba6 {[%clk 0:02:47]} 8. Qe3 {[%clk 0:02:38]}  Bxf1 {[%clk 0:02:44]} 9. Kxf1 {[%clk 0:02:33]}  Qc8 {[%clk 0:02:42]} 10. d5 {[%clk 0:02:30]}  Qa6+ {[%clk 0:02:41]} 11. Kg1 {[%clk 0:02:24]}  Bc5 {[%clk 0:02:32]} 12. Bd4 {[%clk 0:02:23]}  Bxd4 {[%clk 0:02:22]} 13. Nxd4 {[%clk 0:02:24]}  O-O {[%clk 0:02:21]} 14. c4 {[%clk 0:02:17]}  exd5 {[%clk 0:01:54]} 15. cxd5 {[%clk 0:02:09]}  Re8 {[%clk 0:01:50]} 16. Nc3 {[%clk 0:02:09]}  c6 {[%clk 0:01:41]} 17. d6 {[%clk 0:01:59]}  c5 {[%clk 0:01:36]} 18. Nf5 {[%clk 0:01:59]}  Re6 {[%clk 0:01:03]} 19. h4 {[%clk 0:01:16]}  Nc6 {[%clk 0:00:58]} 20. Rh3 {[%clk 0:01:17]}  Ne5 {[%clk 0:00:49]} 21. Rg3 {[%clk 0:01:09]}  Ng6 {[%clk 0:00:45]} 22. Qg5 {[%clk 0:01:01]}  Nxe4 {[%clk 0:00:35]} 23. Nxe4 {[%clk 0:01:00]}  Rxe4 {[%clk 0:00:36]} 24. h5 {[%clk 0:01:01]}  Rae8 {[%clk 0:00:16]} 25. hxg6 {[%clk 0:00:59]}  fxg6 {[%clk 0:00:13]} 26. Ne7+ {[%clk 0:00:58]}  Kf7 {[%clk 0:00:10]} 27. Rf3+ {[%clk 0:00:56]}  Ke6 {[%clk 0:00:10]} 28. Qd5# {[%clk 0:00:56]} 1-0


[Site "https://www.chess.com"]

[Event "Titled Tuesday Blitz July 11 Late 2023"]
[White "Garmendiarov"]
[Black "Srinath, Rao S.V."]
[BlackFideId "5028876"]
[WhiteElo "2353"]
[BlackElo "2503"]
[Result "0-1"]
[Round "3"]
[TimeControl "180+2"]
[Date "2023.07.11"]
[WhiteClock "0:00:02"]
[BlackClock "0:01:03"]
[Board "145"]

1. e4 {[%clk 0:02:58]}  c5 {[%clk 0:02:59]} 2. Nf3 {[%clk 0:02:58]}  e6 {[%clk 0:02:58]} 3. d4 {[%clk 0:02:58]}  cxd4 {[%clk 0:02:59]} 4. Nxd4 {[%clk 0:02:59]}  a6 {[%clk 0:02:59]} 5. c4 {[%clk 0:02:59]}  Qc7 {[%clk 0:02:59]} 6. Nc3 {[%clk 0:02:59]}  Nf6 {[%clk 0:02:59]} 7. a3 {[%clk 0:02:56]}  b6 {[%clk 0:02:54]} 8. Be2 {[%clk 0:02:54]}  Bb7 {[%clk 0:02:54]} 9. f3 {[%clk 0:02:49]}  Nc6 {[%clk 0:02:54]} 10. Be3 {[%clk 0:02:47]}  Be7 {[%clk 0:02:51]} 11. O-O {[%clk 0:02:47]}  O-O {[%clk 0:02:50]} 12. Rc1 {[%clk 0:02:46]}  Bd6 {[%clk 0:02:42]} 13. f4 {[%clk 0:02:21]}  Nxd4 {[%clk 0:02:34]} 14. Qxd4 {[%clk 0:02:12]}  Bc5 {[%clk 0:02:33]} 15. Qd3 {[%clk 0:02:12]}  e5 {[%clk 0:02:07]} 16. b4 {[%clk 0:01:45]}  Bxe3+ {[%clk 0:01:49]} 17. Qxe3 {[%clk 0:01:46]}  exf4 {[%clk 0:01:49]} 18. Rxf4 {[%clk 0:01:45]}  Rfe8 {[%clk 0:01:43]} 19. Rcf1 {[%clk 0:01:41]}  Re6 {[%clk 0:01:37]} 20. Qg3 {[%clk 0:00:21]}  Rae8 {[%clk 0:01:20]} 21. Rxf6 {[%clk 0:00:20]}  Qxg3 {[%clk 0:01:19]} 22. hxg3 {[%clk 0:00:20]}  Rxf6 {[%clk 0:01:18]} 23. Rxf6 {[%clk 0:00:21]}  gxf6 {[%clk 0:01:18]} 24. Bf3 {[%clk 0:00:20]}  Kg7 {[%clk 0:01:16]} 25. Nd5 {[%clk 0:00:19]}  Bxd5 {[%clk 0:01:16]} 26. exd5 {[%clk 0:00:18]}  d6 {[%clk 0:01:16]} 27. Kf2 {[%clk 0:00:18]}  f5 {[%clk 0:01:15]} 28. g4 {[%clk 0:00:17]}  Kf6 {[%clk 0:01:13]} 29. g3 {[%clk 0:00:11]}  Kg5 {[%clk 0:01:06]} 30. gxf5 {[%clk 0:00:11]}  Kxf5 {[%clk 0:01:07]} 31. Kg2 {[%clk 0:00:06]}  Ke5 {[%clk 0:01:05]} 32. Kf2 {[%clk 0:00:05]}  Kd4 {[%clk 0:01:05]} 33. Be2 {[%clk 0:00:05]}  Rxe2+ {[%clk 0:01:02]} 34. Kxe2 {[%clk 0:00:02]}  Kxc4 {[%clk 0:01:03]} 0-1


[Site "https://www.chess.com"]

[Event "Titled Tuesday Blitz July 11 Late 2023"]
[White "Schuster, Karsten"]
[Black "JERO-8914"]
[WhiteFideId "4611071"]
[WhiteElo "2339"]
[BlackElo "2466"]
[Result "0-1"]
[Round "3"]
[TimeControl "180+2"]
[Date "2023.07.11"]
[WhiteClock "0:00:13"]
[BlackClock "0:00:48"]
[Board "146"]

1. Nf3 {[%clk 0:03:00]}  Nf6 {[%clk 0:02:59]} 2. d3 {[%clk 0:03:00]}  d5 {[%clk 0:03:00]} 3. g3 {[%clk 0:02:59]}  Bg4 {[%clk 0:02:59]} 4. Bg2 {[%clk 0:02:59]}  Nbd7 {[%clk 0:02:59]} 5. O-O {[%clk 0:02:59]}  e6 {[%clk 0:02:59]} 6. b3 {[%clk 0:02:59]}  Bd6 {[%clk 0:02:58]} 7. Bb2 {[%clk 0:02:59]}  O-O {[%clk 0:02:58]} 8. c4 {[%clk 0:02:59]}  c6 {[%clk 0:02:58]} 9. Nbd2 {[%clk 0:02:59]}  e5 {[%clk 0:02:57]} 10. e4 {[%clk 0:02:55]}  dxe4 {[%clk 0:02:55]} 11. Nxe4 {[%clk 0:02:52]}  Nxe4 {[%clk 0:02:55]} 12. dxe4 {[%clk 0:02:52]}  Qe7 {[%clk 0:02:55]} 13. Qc2 {[%clk 0:02:47]}  Rfe8 {[%clk 0:02:48]} 14. h3 {[%clk 0:02:36]}  Bh5 {[%clk 0:02:42]} 15. Nh4 {[%clk 0:02:36]}  Bg6 {[%clk 0:02:29]} 16. Nf5 {[%clk 0:02:33]}  Bxf5 {[%clk 0:02:25]} 17. exf5 {[%clk 0:02:33]}  Ba3 {[%clk 0:02:22]} 18. Rae1 {[%clk 0:02:28]}  Bxb2 {[%clk 0:02:12]} 19. Qxb2 {[%clk 0:02:28]}  Rad8 {[%clk 0:02:04]} 20. f4 {[%clk 0:02:23]}  Qc5+ {[%clk 0:02:04]} 21. Qf2 {[%clk 0:02:17]}  exf4 {[%clk 0:02:03]} 22. gxf4 {[%clk 0:01:56]}  Qxf5 {[%clk 0:01:56]} 23. Qg3 {[%clk 0:01:46]}  Nf6 {[%clk 0:01:52]} 24. Rxe8+ {[%clk 0:01:45]}  Rxe8 {[%clk 0:01:52]} 25. Bf3 {[%clk 0:01:37]}  Re3 {[%clk 0:01:48]} 26. Rd1 {[%clk 0:01:32]}  g6 {[%clk 0:01:36]} 27. Kg2 {[%clk 0:01:18]}  Nh5 {[%clk 0:01:35]} 28. Qg4 {[%clk 0:01:17]}  Qc2+ {[%clk 0:01:17]} 29. Kh1 {[%clk 0:01:17]}  Ng3+ {[%clk 0:01:12]} 30. Kg1 {[%clk 0:01:08]}  Kg7 {[%clk 0:01:08]} 31. Ra1 {[%clk 0:00:27]}  Nf5 {[%clk 0:00:59]} 32. Bg2 {[%clk 0:00:25]}  h5 {[%clk 0:00:58]} 33. Qd1 {[%clk 0:00:22]}  Qb2 {[%clk 0:00:52]} 34. Qc1 {[%clk 0:00:21]}  Qd4 {[%clk 0:00:49]} 35. Kh2 {[%clk 0:00:17]}  Qxf4+ {[%clk 0:00:48]} 36. Kh1 {[%clk 0:00:13]}  Ng3+ {[%clk 0:00:48]} 0-1


[Site "https://www.chess.com"]

[Event "Titled Tuesday Blitz July 11 Late 2023"]
[White "Flynn, Jacob"]
[Black "AndresDelgado77"]
[WhiteFideId "2509393"]
[WhiteElo "2449"]
[BlackElo "2312"]
[Result "1-0"]
[Round "3"]
[TimeControl "180+2"]
[Date "2023.07.11"]
[WhiteClock "0:00:09"]
[BlackClock "0:00:00"]
[Board "148"]

1. d4 {[%clk 0:02:58]}  Nf6 {[%clk 0:02:58]} 2. c4 {[%clk 0:02:58]}  c6 {[%clk 0:02:58]} 3. Nf3 {[%clk 0:02:57]}  d5 {[%clk 0:02:58]} 4. e3 {[%clk 0:02:57]}  a6 {[%clk 0:02:56]} 5. c5 {[%clk 0:02:55]}  Bg4 {[%clk 0:02:53]} 6. Nc3 {[%clk 0:02:36]}  Nbd7 {[%clk 0:02:48]} 7. Be2 {[%clk 0:02:30]}  Bxf3 {[%clk 0:02:48]} 8. Bxf3 {[%clk 0:02:30]}  e5 {[%clk 0:02:49]} 9. O-O {[%clk 0:02:30]}  e4 {[%clk 0:02:44]} 10. Be2 {[%clk 0:02:29]}  g6 {[%clk 0:02:40]} 11. b4 {[%clk 0:02:28]}  h5 {[%clk 0:02:38]} 12. a4 {[%clk 0:02:26]}  Bh6 {[%clk 0:02:39]} 13. Rb1 {[%clk 0:02:23]}  O-O {[%clk 0:02:38]} 14. b5 {[%clk 0:02:23]}  axb5 {[%clk 0:02:38]} 15. axb5 {[%clk 0:02:24]}  Nh7 {[%clk 0:02:31]} 16. bxc6 {[%clk 0:02:21]}  bxc6 {[%clk 0:02:31]} 17. Na4 {[%clk 0:02:19]}  Rb8 {[%clk 0:02:22]} 18. Bd2 {[%clk 0:02:19]}  f5 {[%clk 0:02:18]} 19. Rxb8 {[%clk 0:02:08]}  Nxb8 {[%clk 0:01:57]} 20. Qb3 {[%clk 0:01:57]}  f4 {[%clk 0:01:53]} 21. exf4 {[%clk 0:01:57]}  Qf6 {[%clk 0:01:41]} 22. Qe3 {[%clk 0:01:40]}  Bxf4 {[%clk 0:01:14]} 23. Qxf4 {[%clk 0:01:40]}  Qxf4 {[%clk 0:01:14]} 24. Bxf4 {[%clk 0:01:41]}  Rxf4 {[%clk 0:01:15]} 25. Nb6 {[%clk 0:01:36]}  Ng5 {[%clk 0:01:08]} 26. Ra1 {[%clk 0:01:34]}  Ne6 {[%clk 0:01:05]} 27. Ra4 {[%clk 0:01:21]}  Kg7 {[%clk 0:00:58]} 28. g3 {[%clk 0:01:19]}  Rf7 {[%clk 0:00:52]} 29. h4 {[%clk 0:01:19]}  Nd7 {[%clk 0:00:39]} 30. Nc8 {[%clk 0:01:10]}  Nf6 {[%clk 0:00:29]} 31. Nd6 {[%clk 0:01:10]}  Rc7 {[%clk 0:00:27]} 32. Kf1 {[%clk 0:01:05]}  Kh6 {[%clk 0:00:22]} 33. Ke1 {[%clk 0:01:05]}  g5 {[%clk 0:00:21]} 34. hxg5+ {[%clk 0:01:02]}  Kxg5 {[%clk 0:00:20]} 35. Kd2 {[%clk 0:01:00]}  Ng4 {[%clk 0:00:18]} 36. Bxg4 {[%clk 0:00:58]}  Kxg4 {[%clk 0:00:18]} 37. Ke3 {[%clk 0:00:57]}  h4 {[%clk 0:00:12]} 38. gxh4 {[%clk 0:00:54]}  Kxh4 {[%clk 0:00:13]} 39. Ra8 {[%clk 0:00:33]}  Kg5 {[%clk 0:00:11]} 40. Re8 {[%clk 0:00:16]}  Kf6 {[%clk 0:00:11]} 41. Rh8 {[%clk 0:00:15]}  Ng7 {[%clk 0:00:03]} 42. Rh6+ {[%clk 0:00:13]}  Kg5 {[%clk 0:00:03]} 43. Rh7 {[%clk 0:00:12]}  Nf5+ {[%clk 0:00:03]} 44. Nxf5 {[%clk 0:00:11]}  Rxh7 {[%clk 0:00:03]} 45. Nd6 {[%clk 0:00:12]}  Rh3+ {[%clk 0:00:03]} 46. Ke2 {[%clk 0:00:12]}  Rf3 {[%clk 0:00:03]} 47. Nb7 {[%clk 0:00:10]}  Rd3 {[%clk 0:00:02]} 48. Nd8 {[%clk 0:00:07]}  Rxd4 {[%clk 0:00:02]} 49. Ne6+ {[%clk 0:00:08]}  Kf6 {[%clk 0:00:01]} 50. Nxd4 {[%clk 0:00:09]}  Ke5 {[%clk 0:00:00]} 51. Ke3 {[%clk 0:00:09]} 1-0


[Site "https://www.chess.com"]

[Event "Titled Tuesday Blitz July 11 Late 2023"]
[White "Ricaurte Lopez, Juan Carlos"]
[Black "Srdanovic, Jovana"]
[WhiteFideId "3600327"]
[BlackFideId "954810"]
[WhiteElo "2120"]
[BlackElo "2439"]
[Result "1/2-1/2"]
[Round "3"]
[TimeControl "180+2"]
[Date "2023.07.11"]
[WhiteClock "0:01:39"]
[BlackClock "0:01:53"]
[Board "149"]

1. e4 {[%clk 0:02:59]}  e5 {[%clk 0:02:58]} 2. d4 {[%clk 0:02:59]}  exd4 {[%clk 0:02:57]} 3. Qxd4 {[%clk 0:02:57]}  Nc6 {[%clk 0:02:58]} 4. Qe3 {[%clk 0:02:56]}  Nf6 {[%clk 0:02:53]} 5. Nc3 {[%clk 0:02:55]}  Bb4 {[%clk 0:02:53]} 6. Bd2 {[%clk 0:02:55]}  d6 {[%clk 0:02:52]} 7. O-O-O {[%clk 0:02:53]}  O-O {[%clk 0:02:52]} 8. Qg3 {[%clk 0:02:48]}  Qe7 {[%clk 0:02:38]} 9. f3 {[%clk 0:02:41]}  Qe5 {[%clk 0:02:31]} 10. Qxe5 {[%clk 0:02:35]}  Nxe5 {[%clk 0:02:22]} 11. Nge2 {[%clk 0:02:17]}  b6 {[%clk 0:02:16]} 12. Nd4 {[%clk 0:02:14]}  Bb7 {[%clk 0:02:14]} 13. a3 {[%clk 0:02:05]}  Bxc3 {[%clk 0:02:12]} 14. Bxc3 {[%clk 0:02:04]}  Nc6 {[%clk 0:02:12]} 15. Nxc6 {[%clk 0:02:01]}  Bxc6 {[%clk 0:02:12]} 16. Bxf6 {[%clk 0:02:00]}  gxf6 {[%clk 0:02:12]} 17. Bc4 {[%clk 0:02:00]}  Kg7 {[%clk 0:02:12]} 18. Bd5 {[%clk 0:01:59]}  Bxd5 {[%clk 0:02:11]} 19. Rxd5 {[%clk 0:01:59]}  Rfe8 {[%clk 0:02:09]} 20. h4 {[%clk 0:01:55]}  Re5 {[%clk 0:02:09]} 21. Rhd1 {[%clk 0:01:53]}  Rae8 {[%clk 0:02:09]} 22. g4 {[%clk 0:01:52]}  Rxd5 {[%clk 0:02:07]} 23. Rxd5 {[%clk 0:01:50]}  Re5 {[%clk 0:02:08]} 24. Rd4 {[%clk 0:01:48]}  h5 {[%clk 0:02:08]} 25. Kd2 {[%clk 0:01:39]}  Kg6 {[%clk 0:01:53]} 1/2-1/2


[Site "https://www.chess.com"]

[Event "Titled Tuesday Blitz July 11 Late 2023"]
[White "Svicevic, Rastko"]
[Black "Morefield, Jason"]
[WhiteFideId "916315"]
[BlackFideId "30920825"]
[WhiteElo "2333"]
[BlackElo "2774"]
[Result "0-1"]
[Round "3"]
[TimeControl "180+2"]
[Date "2023.07.11"]
[WhiteClock "0:00:16"]
[BlackClock "0:00:22"]
[Board "151"]

1. d4 {[%clk 0:03:00]}  a6 {[%clk 0:03:00]} 2. e4 {[%clk 0:03:00]}  c6 {[%clk 0:03:01]} 3. f4 {[%clk 0:02:59]}  d5 {[%clk 0:03:01]} 4. e5 {[%clk 0:02:50]}  Nh6 {[%clk 0:03:01]} 5. Nf3 {[%clk 0:02:48]}  g6 {[%clk 0:03:00]} 6. Be2 {[%clk 0:02:45]}  Bg7 {[%clk 0:03:00]} 7. c3 {[%clk 0:02:45]}  O-O {[%clk 0:03:00]} 8. Be3 {[%clk 0:02:45]}  f6 {[%clk 0:02:52]} 9. h3 {[%clk 0:02:31]}  Nf5 {[%clk 0:02:48]} 10. Bf2 {[%clk 0:02:30]}  fxe5 {[%clk 0:02:49]} 11. Nxe5 {[%clk 0:02:20]}  Nd7 {[%clk 0:02:44]} 12. Nd2 {[%clk 0:02:15]}  Nf6 {[%clk 0:02:44]} 13. g4 {[%clk 0:02:12]}  Nd6 {[%clk 0:02:44]} 14. Bd3 {[%clk 0:02:05]}  Nfe4 {[%clk 0:02:43]} 15. Bxe4 {[%clk 0:01:59]}  dxe4 {[%clk 0:02:38]} 16. Be3 {[%clk 0:01:59]}  Be6 {[%clk 0:02:24]} 17. Qc2 {[%clk 0:01:56]}  Qc7 {[%clk 0:02:12]} 18. O-O {[%clk 0:01:43]}  Kh8 {[%clk 0:01:59]} 19. Nxe4 {[%clk 0:01:39]}  Nxe4 {[%clk 0:01:59]} 20. Qxe4 {[%clk 0:01:39]}  Bd5 {[%clk 0:02:00]} 21. Qc2 {[%clk 0:01:35]}  b5 {[%clk 0:01:52]} 22. b3 {[%clk 0:01:35]}  Bg8 {[%clk 0:01:43]} 23. Rae1 {[%clk 0:01:21]}  a5 {[%clk 0:01:43]} 24. f5 {[%clk 0:01:20]}  gxf5 {[%clk 0:01:40]} 25. Rxf5 {[%clk 0:01:17]}  Rxf5 {[%clk 0:01:36]} 26. Qxf5 {[%clk 0:01:16]}  Rf8 {[%clk 0:01:36]} 27. Qh5 {[%clk 0:01:14]}  Qd6 {[%clk 0:01:34]} 28. Rf1 {[%clk 0:01:03]}  Rxf1+ {[%clk 0:01:29]} 29. Kxf1 {[%clk 0:01:04]}  Qe6 {[%clk 0:01:03]} 30. Qf5 {[%clk 0:00:55]}  Qd5 {[%clk 0:00:58]} 31. Ke2 {[%clk 0:00:50]}  Qg2+ {[%clk 0:00:52]} 32. Kd3 {[%clk 0:00:42]}  Bf6 {[%clk 0:00:32]} 33. Qf3 {[%clk 0:00:38]}  Qxa2 {[%clk 0:00:29]} 34. Nd7 {[%clk 0:00:30]}  Bxb3 {[%clk 0:00:28]} 35. Bg5 {[%clk 0:00:23]}  Bc4+ {[%clk 0:00:22]} 36. Ke4 {[%clk 0:00:16]}  Bd5+ {[%clk 0:00:22]} 0-1


[Site "https://www.chess.com"]